fUST/lending_fUST_20250930
["ID","MTS","AMOUNT","RATE_DAILY","PERIOD"]
[388467984,1759180265254,-480.0,0.00023783,2]
[388467985,1759180265264,-480.0,0.00023783,2]
[388467986,1759180265273,-561.01,0.00023783,2]
[388467987,1759180265282,-540.93,0.00023783,2]
[388467988,1759180265291,-1396.18,0.00023783,2]
[388467989,1759180265300,-480.0,0.00023783,2]
[388467990,1759180265310,-480.0,0.00023783,2]
[388467991,1759180265319,-480.0,0.00023791,2]
[388467992,1759180265328,-480.0,0.00023791,2]
[388467993,1759180265337,-480.0,0.00023791,2]
[388467994,1759180265346,-480.0,0.00023791,2]
[388467995,1759180265357,-480.0,0.00023791,2]
[388467996,1759180265366,-480.0,0.00023791,2]
[388467997,1759180265376,-480.0,0.00023791,2]
[388467998,1759180265385,-995.88,0.00023791,2]
[388467999,1759180265395,-480.0,0.00023791,2]
[388468000,1759180265403,-480.0,0.00023791,2]
[388468001,1759180265413,-480.0,0.00023791,2]
[388468002,1759180265422,-480.0,0.00023791,2]
[388468003,1759180265434,-480.0,0.00023791,2]
[388468004,1759180265445,-825.57,0.00023791,2]
[388468005,1759180265454,-480.0,0.00023791,2]
[388468006,1759180265463,-480.0,0.00023791,2]
[388468007,1759180265472,-480.0,0.00023791,2]
[388468008,1759180265481,-480.0,0.00023791,2]
[388468009,1759180265491,-480.0,0.00023791,2]
[388468010,1759180265501,-480.0,0.00023791,2]
[388468011,1759180265510,-689.95,0.00023791,2]
[388468012,1759180265520,-480.0,0.00023791,2]
[388468013,1759180265529,-480.0,0.00023791,2]
[388468014,1759180265538,-480.0,0.00023791,2]
[388468015,1759180265547,-480.0,0.00023791,2]
[388468016,1759180265557,-480.0,0.00023791,2]
[388468017,1759180265566,-478.9230792,0.00023791,2]
[388468018,1759180265575,-480.0,0.00023791,2]
[388468019,1759180265585,-480.0,0.00023791,2]
[388468020,1759180265594,-480.0,0.00023791,2]
[388468021,1759180265603,-480.0,0.00023791,2]
[388468022,1759180265612,-480.0,0.00023791,2]
[388468023,1759180265621,-2000.0,0.00023816,2]
[388468024,1759180265631,-2000.0,0.00023816,2]
[388468025,1759180265639,-2000.0,0.00023816,2]
[388468026,1759180265648,-520.7121852,0.00023816,2]
[388468027,1759180265658,-1000.0,0.00023821,2]
[388468028,1759180265667,-414.23417332,0.00023821,2]
[388468029,1759180265677,-1000.0,0.00023821,2]
[388468030,1759180265686,-1000.0,0.00023821,2]
[388468031,1759180265696,-1000.0,0.00023821,2]
[388468032,1759180265705,-1000.0,0.00023821,2]
[388468033,1759180265715,-1000.0,0.00023821,2]
[388468034,1759180265724,-1000.0,0.00023821,2]
[388468035,1759180265732,-1069.89463782,0.00023821,2]
[388468036,1759180265742,-1000.0,0.00023821,2]
[388468037,1759180265751,-1000.0,0.00023821,2]
[388468038,1759180265761,-1000.0,0.00023821,2]
[388468039,1759180265770,-1000.0,0.00023821,2]
[388468040,1759180265779,-1000.0,0.00023821,2]
[388468041,1759180265788,-1000.0,0.00023821,2]
[388468042,1759180265798,-1000.0,0.00023821,2]
[388468043,1759180265807,-1000.0,0.00023821,2]
[388468044,1759180265816,-151.0,0.00023821,7]
[388468045,1759180265825,-152.156511,0.00023821,7]
[388468046,1759180265835,-152.156511,0.00023821,7]
[388468047,1759180265844,-152.156511,0.00023821,7]
[388468048,1759180265854,-214.00450884,0.00023821,7]
[388468049,1759180265863,-152.156506,0.00023821,7]
[388468050,1759180265871,-151.0,0.00023821,7]
[388468051,1759180265882,-151.0,0.00023821,7]
[388468052,1759180265891,-151.0,0.00023821,7]
[388468053,1759180265900,-199.442798,0.00023821,7]
[388468054,1759180265909,-199.442798,0.00023821,7]
[388468055,1759180265920,-199.442798,0.00023821,7]
[388468056,1759180265930,-151.0,0.00023821,7]
[388468057,1759180265939,-199.442789,0.00023821,7]
[388468058,1759180265949,-151.0,0.00023821,7]
[388468059,1759180265959,-375.346038,0.00023821,7]
[388468060,1759180265968,-375.346038,0.00023821,7]
[388468061,1759180265978,-375.346038,0.00023821,7]
[388468062,1759180265987,-375.346029,0.00023821,7]
[388468063,1759180265997,-151.0,0.00023821,7]
[388468064,1759180266007,-151.0,0.00023821,7]
[388468065,1759180266016,-254.9706,0.00023821,7]
[388468066,1759180266026,-151.0,0.00023821,7]
[388468067,1759180266036,-255.83817,0.00023821,7]
[388468068,1759180266045,-255.83817,0.00023821,7]
[388468069,1759180266054,-255.83817,0.00023821,7]
[388468070,1759180266064,-255.838164,0.00023821,7]
[388468071,1759180266073,-151.0,0.00023821,7]
[388468072,1759180266083,-151.0,0.00023821,7]
[388468073,1759180266092,-151.0,0.00023821,7]
[388468074,1759180266102,-979.0,0.0002384,2]
[388468075,1759180266111,-665.0,0.0002384,2]
[388468076,1759180266120,-2156.0,0.0002384,2]
[388468077,1759180266130,-151.0,0.00023841,7]
[388468078,1759180266139,-286.679828,0.00023841,7]
[388468079,1759180266149,-286.679828,0.00023841,7]
[388468080,1759180266158,-286.679828,0.00023841,7]
[388468081,1759180266168,-286.679822,0.00023841,7]
[388468082,1759180266177,-199.780283,0.00023841,7]
[388468083,1759180266187,-199.780283,0.00023841,7]
[388468084,1759180266196,-199.780274,0.00023841,7]
[388468085,1759180266206,-151.0,0.00023841,7]
[388468086,1759180266216,-151.0,0.00023841,7]
[388468087,1759180266225,-648.407709,0.00023841,7]
[388468088,1759180266235,-648.407709,0.00023841,7]
[388468089,1759180266244,-648.407709,0.00023841,7]
[388468090,1759180266254,-648.407713,0.00023841,7]
[388468091,1759180266263,-295.488946,0.00023841,7]
[388468092,1759180266272,-295.488946,0.00023841,7]
[388468093,1759180266282,-151.0,0.00023841,7]
[388468094,1759180266291,-295.488946,0.00023841,7]
[388468095,1759180266300,-295.488937,0.00023841,7]
[388468096,1759180266309,-168.0,0.00023845,2]
[388468097,1759180266318,-600.0,0.00023875,2]
[388468098,1759180266328,-160.0,0.0002389,3]
[388468099,1759180266336,-552.47533659,0.00023894,2]
[388468100,1759180266346,-167.47095116,0.00023894,2]
[388468101,1759180266360,-1564.0,0.00023894,2]
[388468102,1759180266370,-500.0,0.00023894,2]
[388468103,1759180266379,-500.0,0.00023894,2]
[388468104,1759180266388,-151.0,0.00023894,7]
[388468105,1759180266398,-151.0,0.00023894,7]
[388468106,1759180266407,-200.0,0.00023894,3]
[388468107,1759180266417,-200.0,0.00023894,3]
[388468108,1759180266426,-200.0,0.00023894,3]
[388468109,1759180266435,-200.0,0.00023894,3]
[388468110,1759180266444,-200.0,0.00023894,3]
[388468111,1759180266454,-200.0,0.00023894,3]
[388468112,1759180266463,-151.0,0.00023894,7]
[388468113,1759180266472,-260.0,0.00023905,2]
[388468114,1759180266482,-3601.0,0.00023916,2]
[388468115,1759180266492,-150.63440084,0.00023918,2]
[388468116,1759180266502,-509.3829313,0.00023919,2]
[388468117,1759180266512,-500.0,0.00023919,2]
[388468118,1759180266521,-1680.0,0.00023937,2]
[388468119,1759180266532,-420.0,0.00023937,2]
[388468120,1759180266542,-254.0,0.00023937,2]
[388468121,1759180266552,-420.0,0.00023937,2]
[388468122,1759180266562,-151.0,0.00023942,2]
[388468123,1759180266572,-168.0,0.0002395,2]
[388468124,1759180266583,-480.0,0.00023951,2]
[388468125,1759180266594,-2644.79,0.00023951,2]
[388468126,1759180266603,-876.0,0.00023951,2]
[388468127,1759180266613,-722.27,0.00023951,2]
[388468128,1759180266623,-480.0,0.00023953,2]
[388468129,1759180266632,-1345.78,0.00023953,2]
[388468130,1759180266642,-480.0,0.00023953,2]
[388468131,1759180266652,-1010.66,0.00023953,2]
[388468132,1759180266662,-480.0,0.00023953,2]
[388468133,1759180266672,-563.79391011,0.00023953,2]
[388468134,1759180266681,-480.0,0.00023953,2]
[388468135,1759180266691,-660.3,0.00023953,2]
[388468136,1759180266700,-480.0,0.00023953,2]
[388468137,1759180266710,-1371.82,0.00023953,2]
[388468138,1759180266719,-480.0,0.00023953,2]
[388468139,1759180266729,-480.0,0.00023953,2]
[388468140,1759180266739,-7101.53,0.00023953,2]
[388468141,1759180266749,-2395.86,0.00023953,2]
[388468142,1759180266759,-1541.11,0.00023953,2]
[388468143,1759180266768,-588.15,0.00023953,2]
[388468144,1759180266778,-480.0,0.00023953,2]
[388468145,1759180266787,-2058.14,0.00023953,2]
[388468146,1759180266797,-1747.67,0.00023953,2]
[388468147,1759180266806,-480.0,0.00023955,2]
[388468148,1759180266815,-480.0,0.00023955,2]
[388468149,1759180266824,-480.0,0.00023955,2]
[388468150,1759180266834,-151.0,0.00023955,7]
[388468151,1759180266843,-151.0,0.00023955,7]
[388468152,1759180266853,-151.0,0.00023955,7]
[388468153,1759180266862,-151.0,0.00023955,7]
[388468154,1759180266872,-151.0,0.00023955,7]
[388468155,1759180266881,-151.0,0.00023955,7]
[388468156,1759180266891,-480.0,0.00023955,2]
[388468157,1759180266900,-480.0,0.00023955,2]
[388468158,1759180266910,-591.6,0.00023955,2]
[388468159,1759180266919,-480.0,0.00023955,2]
[388468160,1759180266929,-480.0,0.00023955,2]
[388468161,1759180266939,-480.0,0.00023955,2]
[388468162,1759180266948,-165.62758684,0.00023955,2]
[388468163,1759180266958,-899.34,0.00023955,2]
[388468164,1759180266967,-480.0,0.00023955,2]
[388468165,1759180266977,-480.0,0.00023955,2]
[388468166,1759180266986,-480.0,0.00023955,2]
[388468167,1759180266996,-480.0,0.00023955,2]
[388468168,1759180267006,-480.0,0.00023955,2]
[388468169,1759180267015,-480.0,0.00023955,2]
[388468170,1759180267024,-480.0,0.00023955,2]
[388468171,1759180267034,-480.0,0.00023955,2]
[388468172,1759180267044,-480.0,0.00023955,2]
[388468173,1759180267054,-480.0,0.00023955,2]
[388468174,1759180267063,-670.92,0.00023955,2]
[388468175,1759180267073,-480.0,0.00023955,2]
[388468176,1759180267083,-664.1,0.00023955,2]
[388468177,1759180267094,-979.68,0.00023955,2]
[388468178,1759180267103,-480.0,0.00023955,2]
[388468179,1759180267114,-679.03,0.00023955,2]
[388468180,1759180267124,-480.0,0.00023955,2]
[388468181,1759180267134,-480.0,0.00023955,2]
[388468182,1759180267145,-383.27639472,0.00023955,2]
[388468183,1759180267155,-480.0,0.00023955,2]
[388468184,1759180267165,-480.0,0.00023955,2]
[388468185,1759180267175,-292.34960311,0.00023955,2]
[388468186,1759180267184,-480.0,0.00023955,2]
[388468187,1759180267194,-480.0,0.00023955,2]
[388468188,1759180267203,-480.0,0.00023955,2]
[388468189,1759180267212,-633.7,0.00023955,2]
[388468190,1759180267222,-632.39,0.00023955,2]
[388468191,1759180267232,-545.34,0.00023955,2]
[388468192,1759180267241,-480.0,0.00023955,2]
[388468193,1759180267251,-480.0,0.00023955,2]
[388468194,1759180267260,-545.58,0.00023955,2]
[388468195,1759180267269,-480.0,0.00023955,2]
[388468196,1759180267279,-543.94,0.00023955,2]
[388468197,1759180267289,-735.98,0.00023955,2]
[388468198,1759180267298,-480.0,0.00023955,2]
[388468199,1759180267307,-480.0,0.00023955,2]
[388468200,1759180267318,-480.0,0.00023955,2]
[388468201,1759180267328,-509.99,0.00023955,2]
[388468202,1759180267338,-553.31,0.00023955,2]
[388468203,1759180267348,-480.0,0.00023955,2]
[388468204,1759180267360,-739.25,0.00023955,2]
[388468205,1759180267369,-1684.91,0.00023955,2]
[388468206,1759180267378,-480.0,0.00023955,2]
[388468207,1759180267387,-480.0,0.00023955,2]
[388468208,1759180267397,-480.0,0.00023955,2]
[388468209,1759180267441,-1232.01,0.00023955,2]
[388468210,1759180267450,-784.13,0.00023955,2]
[388468211,1759180267460,-480.0,0.00023955,2]
[388468212,1759180267468,-498.83,0.00023955,2]
[388468213,1759180267477,-857.29,0.00023955,2]
[388468214,1759180267486,-480.0,0.00023955,2]
[388468215,1759180267496,-1010.1,0.00023955,2]
[388468216,1759180267505,-560.85,0.00023955,2]
[388468217,1759180267514,-881.56,0.00023955,2]
[388468218,1759180267523,-525.61,0.00023955,2]
[388468219,1759180267532,-1402.76,0.00023955,2]
[388468220,1759180267541,-480.0,0.00023955,2]
[388468221,1759180267551,-4210.83,0.00023955,2]
[388468222,1759180267560,-576.69,0.00023955,2]
[388468223,1759180267569,-595.24,0.00023955,2]
[388468224,1759180267579,-480.0,0.00023955,2]
[388468225,1759180267587,-1696.01,0.00023955,2]
[388468226,1759180267597,-480.0,0.00023955,2]
[388468227,1759180267606,-1238.02,0.00023955,2]
[388468228,1759180267615,-480.0,0.00023955,2]
[388468229,1759180267625,-480.0,0.00023955,2]
[388468230,1759180267634,-858.48,0.00023955,2]
[388468231,1759180267643,-831.11,0.00023955,2]
[388468232,1759180267652,-1547.16,0.00023955,2]
[388468233,1759180267661,-673.71,0.00023955,2]
[388468234,1759180267670,-528.23,0.00023955,2]
[388468235,1759180267679,-480.0,0.00023955,2]
[388468236,1759180267688,-3346.74,0.00023955,2]
[388468237,1759180267698,-691.66,0.00023955,2]
[388468238,1759180267707,-599.28,0.00023955,2]
[388468239,1759180267716,-480.0,0.00023955,2]
[388468240,1759180267726,-1530.45,0.00023955,2]
[388468241,1759180267735,-480.0,0.00023955,2]
[388468242,1759180267744,-1441.05,0.00023955,2]
[388468243,1759180267754,-669.71,0.00023955,2]
[388468244,1759180267763,-480.0,0.00023955,2]
[388468245,1759180267772,-487.67,0.00023955,2]
[388468246,1759180267782,-492.29,0.00023955,2]
[388468247,1759180267790,-480.0,0.00023955,2]
[388468248,1759180267800,-3360.68,0.00023955,2]
[388468249,1759180267809,-480.0,0.00023955,2]
[388468250,1759180267818,-540.45,0.00023955,2]
[388468251,1759180267827,-941.14,0.00023955,2]
[388468252,1759180267836,-480.0,0.00023955,2]
[388468253,1759180267845,-923.95,0.00023955,2]
[388468254,1759180267855,-480.0,0.00023955,2]
[388468255,1759180267864,-480.0,0.00023955,2]
[388468256,1759180267873,-480.0,0.00023955,2]
[388468257,1759180267882,-490.58,0.00023955,2]
[388468258,1759180267891,-480.0,0.00023955,2]
[388468259,1759180267901,-1499.12,0.00023955,2]
[388468260,1759180267911,-480.0,0.00023955,2]
[388468261,1759180267920,-480.0,0.00023955,2]
[388468262,1759180267928,-480.0,0.00023956,2]
[388468263,1759180267937,-480.0,0.00023956,2]
[388468264,1759180267946,-500.0,0.00023957,2]
[388468265,1759180267955,-480.0,0.00023957,2]
[388468266,1759180267964,-151.0,0.00023957,7]
[388468267,1759180267972,-151.0,0.00023957,7]
[388468268,1759180267981,-151.0,0.00023957,7]
[388468269,1759180267990,-151.0,0.00023957,7]
[388468270,1759180268000,-246.29962585,0.00023957,7]
[388468271,1759180268009,-480.0,0.00023957,2]
[388468272,1759180268019,-501.66,0.00023957,2]
[388468273,1759180268028,-480.0,0.00023957,2]
[388468274,1759180268037,-602.69,0.00023957,2]
[388468275,1759180268047,-766.71,0.00023957,2]
[388468276,1759180268056,-480.0,0.00023957,2]
[388468277,1759180268065,-1192.11,0.00023957,2]
[388468278,1759180268075,-480.0,0.00023957,2]
[388468279,1759180268084,-1627.09,0.00023957,2]
[388468280,1759180268093,-480.0,0.00023957,2]
[388468281,1759180268104,-498.01,0.00023957,2]
[388468282,1759180268113,-1025.99,0.00023957,2]
[388468283,1759180268122,-946.39,0.00023957,2]
[388468284,1759180268132,-1604.77,0.00023957,2]
[388468285,1759180268141,-480.0,0.00023957,2]
[388468286,1759180268150,-480.0,0.00023957,2]
[388468287,1759180268160,-250.0,0.00023958,2]
[388468288,1759180268169,-211.492,0.00023958,2]
[388468289,1759180268179,-250.0,0.00023958,2]
[388468290,1759180268188,-160.0,0.00023976,4]
[388468291,1759180268197,-800.0,0.0002399,2]
[388468292,1759180268207,-500.0,0.00023991,2]
[388468293,1759180268217,-500.0,0.00023991,2]
[388468294,1759180268227,-500.0,0.00023991,2]
[388468295,1759180268237,-500.66450359,0.00023991,2]
[388468296,1759180268247,-151.0,0.00023991,7]
[388468297,1759180268256,-151.0,0.00023991,7]
[388468298,1759180268265,-151.0,0.00023991,7]
[388468299,1759180268274,-151.0,0.00023991,7]
[388468300,1759180268284,-151.0,0.00023991,7]
[388468301,1759180268293,-155.0371,0.00023991,7]
[388468302,1759180268303,-5191.43,0.00024,2]
[388468303,1759180268312,-160.0,0.00024,7]
[388468304,1759180268321,-160.0,0.00024,7]
[388468305,1759180268331,-150.543,0.00024021,2]
[388468306,1759180268340,-150.0,0.00024021,2]
[388468307,1759180268349,-263.163,0.00024021,2]
[388468308,1759180268363,-295.0,0.00024021,2]
[388468309,1759180268383,-293.06,0.00024021,2]
[388468310,1759180268398,-2923.0,0.00024041,2]
[388468311,1759180268407,-1680.0,0.00024049,2]
[388468312,1759180268422,-610.8080903,0.00024057,2]
[388468313,1759180268432,-480.0,0.00024057,2]
[388468314,1759180268441,-530.3,0.00024057,2]
[388468315,1759180268451,-483.85,0.00024057,2]
[388468316,1759180268461,-480.0,0.00024057,2]
[388468317,1759180268470,-480.0,0.00024057,2]
[388468318,1759180268480,-480.0,0.00024057,2]
[388468319,1759180268490,-480.0,0.00024057,2]
[388468320,1759180268499,-509.19,0.00024057,2]
[388468321,1759180268509,-480.0,0.00024057,2]
[388468322,1759180268518,-959.25,0.00024057,2]
[388468323,1759180268528,-480.0,0.00024057,2]
[388468324,1759180268538,-480.0,0.00024057,2]
[388468325,1759180268548,-517.13,0.00024057,2]
[388468326,1759180268557,-1872.04,0.00024057,2]
[388468327,1759180268567,-618.04318636,0.00024057,2]
[388468328,1759180268576,-480.0,0.00024057,2]
[388468329,1759180268586,-561.01,0.00024057,2]
[388468330,1759180268595,-540.93,0.00024057,2]
[388468331,1759180268605,-1396.18,0.00024057,2]
[388468332,1759180268614,-480.0,0.00024057,2]
[388468333,1759180268623,-480.0,0.00024057,2]
[388468334,1759180268633,-480.0,0.00024065,2]
[388468335,1759180268642,-480.0,0.00024065,2]
[388468336,1759180268651,-480.0,0.00024065,2]
[388468337,1759180268660,-480.0,0.00024065,2]
[388468338,1759180268669,-480.0,0.00024065,2]
[388468339,1759180268679,-480.0,0.00024065,2]
[388468340,1759180268689,-480.0,0.00024065,2]
[388468341,1759180268698,-995.88,0.00024065,2]
[388468342,1759180268707,-480.0,0.00024065,2]
[388468343,1759180268716,-480.0,0.00024065,2]
[388468344,1759180268726,-480.0,0.00024065,2]
[388468345,1759180268735,-480.0,0.00024065,2]
[388468346,1759180268746,-480.0,0.00024065,2]
[388468347,1759180268755,-825.57,0.00024065,2]
[388468348,1759180268765,-480.0,0.00024065,2]
[388468349,1759180268774,-480.0,0.00024065,2]
[388468350,1759180268785,-480.0,0.00024065,2]
[388468351,1759180268794,-480.0,0.00024065,2]
[388468352,1759180268803,-480.0,0.00024065,2]
[388468353,1759180268812,-480.0,0.00024065,2]
[388468354,1759180268822,-689.95,0.00024065,2]
[388468355,1759180268831,-480.0,0.00024065,2]
[388468356,1759180268840,-480.0,0.00024065,2]
[388468357,1759180268850,-480.0,0.00024065,2]
[388468358,1759180268859,-480.0,0.00024065,2]
[388468359,1759180268868,-480.0,0.00024065,2]
[388468360,1759180268877,-480.0,0.00024065,2]
[388468361,1759180268888,-480.0,0.00024065,2]
[388468362,1759180268898,-480.0,0.00024065,2]
[388468363,1759180268907,-480.0,0.00024065,2]
[388468364,1759180268916,-480.0,0.00024065,2]
[388468365,1759180268926,-1500.0,0.00024068,2]
[388468366,1759180268936,-233.87608454,0.0002407,7]
[388468367,1759180268945,-150.63440084,0.00024082,2]
[388468368,1759180268954,-168.0,0.00024097,2]
[388468369,1759180268964,-800.0,0.00024097,2]
[388468370,1759180268973,-200.0,0.00024109,2]
[388468371,1759180268982,-200.0,0.00024109,2]
[388468372,1759180268992,-200.0,0.00024109,2]
[388468373,1759180269002,-200.0,0.00024109,2]
[388468374,1759180269013,-200.0,0.00024109,2]
[388468375,1759180269023,-200.0,0.00024109,2]
[388468376,1759180269033,-200.0,0.00024109,2]
[388468377,1759180269043,-200.0,0.00024109,2]
[388468378,1759180269053,-600.0,0.00024124,2]
[388468379,1759180269062,-168.0,0.00024125,2]
[388468380,1759180269072,-800.0,0.00024153,2]
[388468381,1759180269082,-1564.0,0.00024168,2]
[388468382,1759180269091,-575.31558673,0.00024168,2]
[388468383,1759180269101,-500.0,0.00024168,2]
[388468384,1759180269111,-233.87608454,0.0002417,7]
[388468385,1759180269120,-233.87608454,0.0002417,7]
[388468386,1759180269130,-160.179414,0.00024192,3]
[388468387,1759180269140,-168.0,0.00024195,2]
[388468388,1759180269150,-800.0,0.00024202,2]
[388468389,1759180269160,-800.0,0.00024209,2]
[388468390,1759180269169,-160.179414,0.0002421,20]
[388468391,1759180269179,-480.0,0.00024225,2]
[388468392,1759180269188,-2644.79,0.00024225,2]
[388468393,1759180269198,-876.0,0.00024225,2]
[388468394,1759180269207,-722.27,0.00024225,2]
[388468395,1759180269217,-480.0,0.00024227,2]
[388468396,1759180269226,-1345.78,0.00024227,2]
[388468397,1759180269235,-480.0,0.00024227,2]
[388468398,1759180269245,-1010.66,0.00024227,2]
[388468399,1759180269255,-480.0,0.00024227,2]
[388468400,1759180269264,-480.0,0.00024227,2]
[388468401,1759180269274,-660.3,0.00024227,2]
[388468402,1759180269283,-1371.82,0.00024227,2]
[388468403,1759180269292,-277.94899404,0.00024227,2]
[388468404,1759180269301,-480.0,0.00024227,2]
[388468405,1759180269311,-7101.53,0.00024227,2]
[388468406,1759180269320,-2395.86,0.00024227,2]
[388468407,1759180269329,-1541.11,0.00024227,2]
[388468408,1759180269338,-588.15,0.00024227,2]
[388468409,1759180269348,-480.0,0.00024227,2]
[388468410,1759180269358,-2058.14,0.00024227,2]
[388468411,1759180269367,-1747.67,0.00024227,2]
[388468412,1759180269375,-480.0,0.00024229,2]
[388468413,1759180269385,-480.0,0.00024229,2]
[388468414,1759180269400,-480.0,0.00024229,2]
[388468415,1759180269409,-480.0,0.00024229,2]
[388468416,1759180269418,-480.0,0.00024229,2]
[388468417,1759180269427,-591.6,0.00024229,2]
[388468418,1759180269436,-480.0,0.00024229,2]
[388468419,1759180269445,-480.0,0.00024229,2]
[388468420,1759180269454,-480.0,0.00024229,2]
[388468421,1759180269463,-899.34,0.00024229,2]
[388468422,1759180269472,-480.0,0.00024229,2]
[388468423,1759180269482,-480.0,0.00024229,2]
[388468424,1759180269491,-480.0,0.00024229,2]
[388468425,1759180269500,-480.0,0.00024229,2]
[388468426,1759180269510,-480.0,0.00024229,2]
[388468427,1759180269519,-480.0,0.00024229,2]
[388468428,1759180269528,-480.0,0.00024229,2]
[388468429,1759180269537,-480.0,0.00024229,2]
[388468430,1759180269546,-480.0,0.00024229,2]
[388468431,1759180269555,-480.0,0.00024229,2]
[388468432,1759180269564,-670.92,0.00024229,2]
[388468433,1759180269573,-480.0,0.00024229,2]
[388468434,1759180269582,-664.1,0.00024229,2]
[388468435,1759180269592,-979.68,0.00024229,2]
[388468436,1759180269601,-480.0,0.00024229,2]
[388468437,1759180269610,-679.03,0.00024229,2]
[388468438,1759180269620,-560.97,0.00024229,2]
[388468439,1759180269631,-480.0,0.00024229,2]
[388468440,1759180269642,-480.0,0.00024229,2]
[388468441,1759180269652,-480.0,0.00024229,2]
[388468442,1759180269660,-480.0,0.00024229,2]
[388468443,1759180269669,-480.0,0.00024229,2]
[388468444,1759180269678,-480.0,0.00024229,2]
[388468445,1759180269687,-633.7,0.00024229,2]
[388468446,1759180269697,-632.39,0.00024229,2]
[388468447,1759180269706,-545.34,0.00024229,2]
[388468448,1759180269715,-506.1,0.00024229,2]
[388468449,1759180269724,-480.0,0.00024229,2]
[388468450,1759180269732,-545.58,0.00024229,2]
[388468451,1759180269741,-480.0,0.00024229,2]
[388468452,1759180269752,-543.94,0.00024229,2]
[388468453,1759180269761,-735.98,0.00024229,2]
[388468454,1759180269770,-480.0,0.00024229,2]
[388468455,1759180269779,-480.0,0.00024229,2]
[388468456,1759180269789,-480.0,0.00024229,2]
[388468457,1759180269798,-509.99,0.00024229,2]
[388468458,1759180269807,-553.31,0.00024229,2]
[388468459,1759180269816,-480.0,0.00024229,2]
[388468460,1759180269825,-739.25,0.00024229,2]
[388468461,1759180269834,-1684.91,0.00024229,2]
[388468462,1759180269843,-280.61636506,0.00024229,2]
[388468463,1759180269853,-480.0,0.00024229,2]
[388468464,1759180269862,-480.0,0.00024229,2]
[388468465,1759180269872,-1232.01,0.00024229,2]
[388468466,1759180269882,-784.13,0.00024229,2]
[388468467,1759180269891,-480.0,0.00024229,2]
[388468468,1759180269901,-498.83,0.00024229,2]
[388468469,1759180269910,-857.29,0.00024229,2]
[388468470,1759180269919,-480.0,0.00024229,2]
[388468471,1759180269929,-1010.1,0.00024229,2]
[388468472,1759180269938,-560.85,0.00024229,2]
[388468473,1759180269947,-881.56,0.00024229,2]
[388468474,1759180269956,-525.61,0.00024229,2]
[388468475,1759180269966,-1402.76,0.00024229,2]
[388468476,1759180269975,-480.0,0.00024229,2]
[388468477,1759180269985,-4210.83,0.00024229,2]
[388468478,1759180269994,-576.69,0.00024229,2]
[388468479,1759180270004,-595.24,0.00024229,2]
[388468480,1759180270014,-480.0,0.00024229,2]
[388468481,1759180270024,-1696.01,0.00024229,2]
[388468482,1759180270034,-480.0,0.00024229,2]
[388468483,1759180270044,-1238.02,0.00024229,2]